bitfinex/quotes_ETHUSD_20220112
["timestamp","ask_amount","ask_price","bid_price","bid_amount"]
[1641980322001,0.00113685,3254.4,3253.4,1.08701241]
[1641980322002,0.00113685,3254.4,3253.6,0.00341054]
[1641980322202,0.00113685,3254.4,3253.5,0.00397896]
[1641980322603,0.52371588,3254.3,3253.5,0.00397896]
[1641980323649,0.52371588,3254.3,3253.7,0.7682]
[1641980324044,0.52371588,3254.3,3253.8,0.30227369]
[1641980324442,0.52371588,3254.3,3253.9,0.00170527]
[1641980324646,0.52371588,3254.3,3253.9,1.35973209]
[1641980324843,0.52371588,3254.3,3253.9,0.00170527]
[1641980325049,0.52371588,3254.3,3254.0,0.00113684]
[1641980325257,0.52371588,3254.3,3253.9,0.00170527]
[1641980325449,0.52371588,3254.3,3253.5,0.00397896]
[1641980326049,0.52371588,3254.3,3253.1,1.19167599]
[1641980326254,0.52371588,3254.3,3253.2,0.00568423]
[1641980327083,2.86919108,3254.2,3253.2,0.00568423]
[1641980327287,0.01226472,3254.1,3253.2,0.00568423]
[1641980327485,1.01226472,3254.1,3252.8,0.00795792]
[1641980327687,0.01226472,3254.1,3252.8,0.00795792]
[1641980327884,0.52371588,3254.0,3252.8,0.00795792]
[1641980328284,0.52371588,3254.0,3253.0,1.31212359]
[1641980328485,0.52371588,3254.0,3253.0,1.91212359]
[1641980328686,0.52371588,3254.0,3253.1,0.00625265]
[1641980328892,1.26471588,3254.0,3253.1,0.00625265]
[1641980329086,1.26471588,3254.0,3252.8,0.00795792]
[1641980329087,2.03341588,3254.0,3252.8,0.00795792]
[1641980329384,0.31956816,3253.9,3252.2,0.01136847]
[1641980329615,0.441,3253.8,3252.2,0.01136847]
[1641980329784,0.441,3253.8,3252.5,2.90896136]
[1641980330184,0.441,3253.8,3252.6,0.00909477]
[1641980330681,0.741,3253.8,3252.6,0.00909477]
[1641980330944,0.0320719,3253.6,3252.6,0.00909477]
[1641980331145,0.441,3253.5,3252.6,0.00909477]
[1641980332248,0.52371588,3253.4,3252.6,0.00909477]
[1641980333645,0.52371588,3253.7,3252.6,0.00909477]
[1641980334494,0.52371588,3253.7,3253.0,1.3516044]
[1641980334892,0.52371588,3253.7,3253.1,0.00625265]
[1641980335694,0.52371588,3253.7,3252.9,0.0073895]
[1641980336295,2.40801346,3253.6,3252.9,0.0073895]
[1641980336700,2.40801346,3253.6,3252.9,1.47680194]
[1641980336899,2.40801346,3253.6,3252.9,2.99973167]
[1641980337098,0.52371588,3253.7,3253.0,0.00682108]
[1641980337943,1.82371588,3253.7,3253.0,0.00682108]
[1641980338543,0.441,3253.6,3253.0,0.00682108]
[1641980338741,33.01251594,3253.4,3253.0,0.00682108]
[1641980338939,33.01251594,3253.4,3252.9,0.0073895]
[1641980338940,0.03979755,3253.2,3252.9,0.0073895]
[1641980339143,0.441,3253.1,3252.9,0.0073895]
[1641980339357,0.47760148,3253.1,3252.9,0.0073895]
[1641980339541,1.441,3253.1,3252.9,0.0073895]
[1641980339740,1.741,3253.1,3252.9,8.95e-05]
[1641980339941,2.041,3253.1,3252.9,8.95e-05]
[1641980340240,2.041,3253.1,3251.2,0.0097527]
[1641980340646,2.80992,3253.1,3251.1,0.01032112]
[1641980340946,3.63377053,3253.0,3251.1,0.01032112]
[1641980341145,1.441,3252.9,3251.1,0.01032112]
[1641980341345,1.441,3252.9,3251.5,1.4737241]
[1641980341544,1.441,3252.9,3251.1,0.01032112]
[1641980341545,0.01208865,3252.6,3251.1,0.01032112]
[1641980341810,0.441,3252.5,3251.6,0.00747901]
[1641980342011,18.8957538,3252.4,3251.1,0.00747901]
[1641980342210,0.741,3252.3,3251.7,0.00691058]
[1641980342409,18.841,3252.3,3251.1,0.01032112]
[1641980342609,19.48995904,3252.3,3251.1,0.01032112]
[1641980342812,19.1,3252.2,3251.1,0.01032112]
[1641980343010,0.76916,3251.9,3251.1,0.01032112]
[1641980343211,0.441,3251.8,3251.1,0.01032112]
[1641980343641,0.7692375,3251.7,3251.1,0.01032112]
[1641980343812,0.441,3251.6,3251.1,0.01032112]
[1641980344009,0.76923,3251.5,3251.1,0.01032112]
[1641980344212,0.441,3251.5,3251.1,0.01032112]
[1641980344812,0.441,3251.5,3251.2,1.33558028]
[1641980345009,0.441,3251.5,3251.3,0.00733301]
[1641980345214,0.441,3251.5,3251.3,0.01651729]
[1641980345452,0.441,3251.5,3251.4,0.00861585]
[1641980345846,4.641,3251.5,3251.4,0.00861585]
[1641980346043,0.441,3251.5,3251.4,0.00861585]
[1641980347349,0.441,3251.5,3251.4,1.51679054]
[1641980347544,0.441,3251.5,3251.4,0.00861585]
[1641980347946,0.441,3252.3,3251.4,0.00861585]
[1641980349389,0.741,3252.3,3251.4,0.00861585]
[1641980349997,1.50998,3252.3,3251.9,1.11462581]
[1641980350393,0.441,3252.7,3252.0,0.00520531]
[1641980350597,0.07785904,3253.3,3252.0,0.00520531]
[1641980350598,6.9875,3253.2,3252.0,0.00520531]
[1641980351395,6.9875,3253.2,3252.0,1.30323027]
[1641980351595,0.00104735,3253.1,3252.0,1.30323027]
[1641980351796,1.00104735,3253.1,3252.1,0.00463689]
[1641980352297,0.441,3253.0,3252.1,0.00463689]
[1641980352601,0.441,3253.0,3252.6,1.1547642]
[1641980352800,2.40867383,3252.9,3252.6,1.1547642]
[1641980353037,0.441,3252.8,3252.7,0.00122635]
[1641980353737,1.441,3252.8,3251.7,0.00691058]
[1641980354139,0.76889,3252.6,3251.7,0.00691058]
[1641980354339,0.441,3252.5,3251.7,0.00691058]
[1641980354739,0.441,3252.5,3252.3,1.24001996]
[1641980354944,0.441,3252.5,3251.7,0.00691058]
[1641980355145,0.441,3252.5,3252.4,0.00293162]
[1641980355339,1.20994,3252.5,3251.1,0.01032112]
[1641980355746,0.441,3252.5,3251.6,1.35291357]
[1641980356146,0.441,3252.5,3251.7,0.00691058]
[1641980356986,0.441,3252.5,3251.8,1.47835071]
[1641980357187,0.441,3252.5,3251.8,1.77835071]
[1641980357492,0.441,3252.5,3251.9,0.00577374]
[1641980357792,0.441,3252.5,3252.4,1.16974793]
[1641980358188,0.441,3252.5,3252.4,1.17267955]
[1641980358790,0.441,3252.5,3252.4,3.162e-05]
[1641980358989,7.5,3252.4,3250.8,1.1815]
[1641980359189,0.01797531,3252.2,3251.2,0.00682108]
[1641980359392,0.01672181,3252.0,3251.2,0.00682108]
[1641980359589,0.441,3251.9,3251.2,0.00682108]
[1641980359806,0.441,3251.8,3251.7,1.48928753]
[1641980359989,1.21011,3251.8,3251.7,1.48928753]
[1641980360189,1.21011,3251.8,3251.7,1.49326649]
[1641980360450,0.441,3251.8,3251.7,1.49326649]
[1641980362560,3.646,3252.8,3251.7,5.47048716]
[1641980362743,2.84967383,3252.9,3251.8,2.69402373]
[1641980362981,0.00170527,3252.7,3251.8,2.69743427]
[1641980363143,0.0022737,3252.8,3251.9,0.00284212]
[1641980363344,0.00113685,3252.6,3252.5,1.18648357]
[1641980363545,0.00170527,3252.7,3252.5,1.18648357]
[1641980363744,0.00113685,3252.6,3252.5,1.18648357]
[1641980364996,0.00113685,3252.6,3252.5,2.66349101]
[1641980366127,0.00113685,3252.6,3252.5,1.19376096]
[1641980370546,0.61305685,3252.6,3252.5,1.14376096]
[1641980376541,0.61305685,3252.6,3252.5,1.44376096]
[1641980376743,0.61305685,3252.6,3252.5,4.31295204]
[1641980376744,5.685e-05,3252.6,3252.5,4.31295204]
[1641980376981,13.6311,3254.2,3252.5,4.31295204]
[1641980376982,7.0578,3253.9,3252.5,0.61939946]
[1641980377142,5.8555,3253.8,3252.6,2.86919108]
[1641980377348,5.8555,3253.8,3252.5,1.61939946]
[1641980377349,0.00341054,3253.2,3252.5,0.61939946]
[1641980377545,0.00341054,3253.2,3252.8,1.13528357]
[1641980377744,0.00284212,3253.1,3252.5,0.01939946]
[1641980377945,0.44384212,3253.1,3252.5,0.00727739]
[1641980378143,0.00227369,3253.0,3252.7,1.17980504]
[1641980378547,0.00170527,3252.9,3252.7,1.17980504]
[1641980378945,0.00113685,3252.8,3252.7,1.17980504]
[1641980379188,0.00113685,3252.8,3252.7,1.47980504]
[1641980379388,0.00113685,3252.8,3252.7,1.17980504]
[1641980379893,0.00113685,3252.8,3252.7,1.47980504]
[1641980380089,0.00113685,3252.8,3252.7,1.77980504]
[1641980381293,0.00113685,3252.8,3252.7,1.17980504]
[1641980382494,0.00113685,3252.8,3251.9,1.53734]
[1641980382696,0.00113685,3252.8,3251.9,0.76877]
[1641980382955,0.00113685,3252.8,3252.0,0.00341054]
[1641980383546,0.00113685,3252.8,3252.3,1.52408687]
[1641980383947,0.00113685,3252.8,3252.4,0.00113685]
[1641980384149,0.76995685,3252.8,3252.4,0.00113685]
[1641980384350,0.00113685,3252.8,3252.4,0.00113685]
[1641980385153,0.441,3252.7,3252.4,0.00113685]
[1641980385350,0.01567213,3252.6,3252.4,0.00113685]
[1641980385553,14.0035,3252.7,3251.5,0.00625266]
[1641980385751,4.29231171,3252.6,3251.5,0.00625266]
[1641980385953,18.56047981,3252.5,3251.5,0.00625266]
[1641980386153,18.11933826,3252.3,3251.5,0.00625266]
[1641980386358,0.76911,3251.9,3251.2,0.00795793]
[1641980386554,2.06221,3251.9,3251.1,0.00852635]
[1641980386792,21.41441613,3251.8,3251.1,0.00852635]
[1641980386991,0.441,3251.7,3251.1,0.00852635]
[1641980387192,1.441,3251.7,3251.1,0.00852635]
[1641980387392,0.76915,3251.5,3251.0,0.93550385]
[1641980387796,0.00170527,3251.4,3251.0,0.93550385]
[1641980388194,0.00113684,3251.3,3251.0,0.93550385]
[1641980388594,0.00170527,3251.4,3251.0,0.93550385]
[1641980388898,0.00113684,3251.3,3251.0,0.93550385]
[1641980389293,0.00170527,3251.4,3251.0,0.93550385]
[1641980389694,0.00113684,3251.3,3251.0,0.93550385]
[1641980389896,0.00113684,3251.3,3251.0,1.23550385]
[1641980390095,0.00170527,3251.4,3251.0,1.23550385]
[1641980390545,0.441,3251.7,3251.0,1.23550385]
[1641980390546,0.00113684,3251.3,3251.0,1.23550385]
[1641980390946,0.00284211,3251.6,3251.0,1.23550385]
[1641980391146,0.44384211,3251.6,3251.0,1.23550385]
[1641980391347,0.00227369,3251.5,3251.0,1.23550385]
[1641980391754,0.00170527,3251.4,3251.0,1.23550385]
[1641980392147,0.00113684,3251.3,3251.0,2.00459385]
[1641980392449,0.76905,3251.8,3251.0,2.00459385]
[1641980392849,0.00341054,3251.7,3251.0,2.00459385]
[1641980393248,0.00284211,3251.6,3251.0,2.00459385]
[1641980393447,0.00284211,3251.6,3251.4,1.18630486]
[1641980393648,0.77139369,3251.5,3251.4,1.18630486]
[1641980394054,0.00227369,3251.5,3251.4,1.18630486]
[1641980395903,0.00227369,3251.5,3251.0,0.93550385]
[1641980396103,0.78447666,3251.4,3251.0,1.23550385]
[1641980396304,0.77084527,3251.4,3251.0,1.23550385]
[1641980396505,0.00113684,3251.3,3251.0,1.23550385]
[1641980396904,0.00341054,3251.7,3251.0,1.23550385]
[1641980397305,0.00284211,3251.6,3251.0,1.23550385]
[1641980397803,1.0,3251.8,3251.1,2.03364303]
[1641980397804,0.00227369,3251.5,3251.1,2.03364303]
[1641980398047,0.00227369,3251.5,3251.2,0.3]
[1641980398250,0.00170527,3251.4,3251.2,0.3]
[1641980398450,0.00170527,3251.4,3251.1,1.26457303]
[1641980398652,0.44213684,3251.3,3251.1,1.26457303]
[1641980398850,7.441,3251.2,3251.0,1.23550385]
[1641980399253,0.441,3251.2,3251.0,1.23550385]
[1641980400252,0.441,3251.2,3251.0,2.32835782]
[1641980400450,0.341,3251.2,3251.0,0.93550385]
[1641980400850,0.141,3251.2,3251.0,0.93550385]
[1641980402001,0.141,3251.2,3251.0,1.23550385]
[1641980402199,0.141,3251.2,3251.0,2.34452223]
[1641980403998,0.141,3251.2,3251.0,2.04452223]
[1641980405002,0.141,3251.2,3251.1,0.00734229]
[1641980408667,0.141,3251.2,3251.1,1.53126487]
[1641980409899,0.141,3251.2,3251.1,1.83126487]
[1641980410699,0.77248054,3251.7,3251.1,3.18693733]
[1641980410700,0.44441054,3251.7,3251.1,3.18693733]
[1641980410903,1.53799,3252.4,3251.7,0.03165904]
[1641980411102,5.5581,3252.7,3251.6,1.92103491]
[1641980411301,0.00227369,3252.1,3251.9,0.76878]
[1641980411608,5.5581,3252.7,3252.0,0.3]
[1641980411802,5.5581,3252.7,3251.9,1.06878]
[1641980412001,0.00511581,3252.6,3251.9,0.76878]
[1641980412200,1.00511581,3252.6,3251.9,1.06878]
[1641980412402,1.00511581,3252.6,3251.9,0.3]
[1641980412403,0.00454738,3252.5,3251.9,0.3]
[1641980412831,0.00397896,3252.4,3251.8,1.83755]
[1641980413054,0.00397896,3252.4,3251.6,1.29525097]
[1641980413256,0.00341054,3252.3,3251.6,1.59525097]
[1641980413658,18.10284211,3252.2,3251.2,1.20734212]
[1641980413868,18.1,3252.0,3251.2,0.00284212]
[1641980414060,18.1,3251.8,3251.3,0.0022737]
[1641980414256,0.441,3251.9,3251.3,0.0022737]
[1641980414257,18.8692576,3251.6,3251.3,0.0022737]
[1641980414460,0.441,3251.5,3251.3,0.0022737]
[1641980414657,1.441,3251.5,3251.3,0.0022737]
[1641980415459,1.441,3251.5,3251.1,0.00341054]
[1641980415460,18.1,3251.4,3251.1,0.00341054]
[1641980415660,1.441,3251.3,3251.1,0.00341054]
[1641980415862,18.1,3251.2,3251.1,0.00341054]
[1641980416060,18.1,3251.2,3249.6,5.038]
[1641980416061,18.1,3251.0,3249.6,5.038]
[1641980416262,1.441,3251.2,3249.6,5.038]
[1641980416263,18.1,3250.8,3249.6,1.1554]
[1641980416463,0.76937,3250.5,3250.2,1.12280519]
[1641980416896,0.76937,3250.5,3250.3,0.00454739]
[1641980417900,1.5388368,3250.5,3250.3,0.00454739]
[1641980418100,7.941,3250.4,3250.3,0.00454739]
[1641980418300,0.76945,3250.1,3249.6,1.52995676]
[1641980418502,0.76945,3250.1,3249.6,1.5214304]
[1641980419101,0.441,3250.2,3249.6,1.8214304]
[1641980419502,0.441,3250.2,3249.6,2.1214304]
[1641980419698,0.441,3250.2,3249.7,1.53878]
[1641980419899,0.441,3250.2,3249.8,0.0074026]
[1641980420104,0.441,3250.7,3250.4,1.16578422]
[1641980420550,0.441,3250.7,3250.5,0.00341054]
[1641980423253,0.441,3251.1,3250.5,1.18934481]
[1641980423479,18.47046851,3252.1,3250.7,0.76917]
[1641980423480,5.9356,3251.6,3250.7,0.76917]
[1641980423650,5.9356,3251.6,3250.8,0.3]
[1641980423852,0.00227369,3251.5,3251.0,0.76904]
[1641980424052,0.00227369,3251.5,3250.9,1.83920685]
[1641980424294,0.00170527,3251.4,3250.9,2.13920685]
[1641980424515,0.00170527,3251.4,3251.0,1.36673606]
[1641980424796,0.00113684,3251.3,3251.0,1.31673606]
[1641980425196,0.00227369,3251.5,3251.1,0.76906]
[1641980425406,0.441,3252.7,3251.2,0.6]
[1641980425599,0.441,3252.7,3251.3,0.6919462]
[1641980425799,0.00113685,3251.7,3251.3,0.00113685]
[1641980426000,0.00113685,3251.7,3251.3,0.30113685]
[1641980426801,0.00113685,3251.7,3251.4,1.49494846]
[1641980427002,0.00113685,3251.7,3251.5,0.3]
[1641980427603,0.00113685,3251.7,3251.6,1.53765]
[1641980427803,0.00113685,3251.7,3251.5,1.06887]
[1641980428047,0.36032804,3252.3,3251.5,1.06887]
[1641980428753,0.36032804,3252.3,3251.5,2.6066]
[1641980428942,0.36032804,3252.3,3251.7,0.76891]
[1641980429347,0.80132804,3252.3,3251.7,0.76891]
[1641980429546,0.80132804,3252.3,3251.8,0.3]
[1641980429949,0.80132804,3252.3,3251.7,0.00731447]
[1641980430249,1.0,3252.5,3251.7,0.00731447]
[1641980430449,6.11511581,3252.6,3251.9,0.7688]
[1641980430652,0.00397896,3252.4,3251.9,0.7688]
[1641980430878,1.00454738,3252.5,3251.9,0.7688]
[1641980431048,0.00341054,3252.3,3251.9,0.7688]
[1641980431249,0.00397896,3252.4,3252.1,2.09888131]
[1641980431449,0.00284211,3252.2,3252.1,2.09888131]
[1641980431696,0.00341054,3252.3,3252.1,1.33008131]
[1641980431923,0.00284211,3252.2,3252.1,1.63008131]
[1641980432098,3.15284211,3252.2,3252.1,1.63008131]
[1641980432502,3.15284211,3252.2,3252.1,0.3]
[1641980432901,3.92183211,3252.2,3251.7,0.00731447]
[1641980433305,0.00227369,3252.1,3251.7,0.00731447]
[1641980433703,0.00170527,3252.0,3251.7,0.00731447]
[1641980433905,0.441,3251.9,3251.7,0.00731447]
[1641980434103,0.44213684,3251.9,3251.7,0.00731447]
[1641980434504,1.98037684,3251.9,3251.7,0.00731447]
[1641980434703,16.7461,3251.8,3251.7,0.00731447]
[1641980434904,17.1871,3251.8,3251.7,0.00731447]
[1641980435113,0.01869955,3251.7,3251.3,0.00844204]
[1641980435304,1.21016,3251.6,3251.3,0.00844204]
[1641980435553,0.441,3251.5,3251.4,0.00170527]
[1641980435957,6.191,3251.5,3251.4,0.00170527]
[1641980436855,0.441,3251.5,3251.4,0.00170527]
[1641980438062,0.741,3251.5,3251.4,0.00170527]
[1641980438658,1.741,3251.5,3251.4,0.00170527]
[1641980438862,19.841,3251.5,3251.4,0.00170527]
[1641980439299,19.841,3251.5,3251.3,0.00730519]
[1641980439501,9.03873,3251.4,3251.3,0.00730519]
[1641980439801,27.57973,3251.4,3250.0,1.4432]
[1641980440000,20.6387542,3251.3,3250.0,1.4432]
[1641980440200,0.441,3251.2,3250.1,1.40209769]
[1641980440602,0.441,3251.2,3250.2,0.00682108]
[1641980441452,0.441,3251.2,3250.4,0.76917]
[1641980441805,0.441,3251.2,3250.5,1.43345951]
[1641980442207,0.441,3251.2,3250.6,0.00454739]
[1641980442809,0.441,3251.2,3250.7,0.76912]
[1641980443050,0.441,3251.2,3250.8,0.3]
[1641980443252,0.441,3251.2,3250.8,0.30341054]
[1641980443454,0.441,3251.2,3250.9,0.00284212]
[1641980443951,0.441,3251.2,3250.9,0.30284212]
[1641980444354,0.441,3251.2,3251.0,0.0022737]
[1641980444951,0.01482777,3251.1,3250.8,0.00341054]
[1641980445152,0.441,3251.5,3250.8,0.00341054]
[1641980445556,0.441,3251.5,3250.8,2.27879328]
[1641980445957,0.441,3251.5,3250.9,0.00284212]
[1641980446158,0.00113684,3251.6,3250.9,1.54070212]
[1641980446363,0.00113684,3251.6,3250.9,1.84070212]
[1641980446556,0.00113684,3251.6,3251.3,1.80983338]
[1641980446809,0.00113684,3251.6,3251.4,1.26327702]
[1641980447412,0.00113684,3251.6,3251.4,1.56327702]
[1641980448014,0.00113684,3251.6,3251.4,1.26327702]
[1641980452557,0.00113684,3251.6,3251.5,0.3]
[1641980452857,0.00113684,3251.6,3251.4,1.26327702]
[1641980453060,0.44213684,3251.6,3251.4,1.26327702]
[1641980453657,0.44213684,3251.6,3251.0,1.2176737]
[1641980453857,0.44213684,3251.6,3251.0,0.0022737]
[1641980454257,0.44213684,3251.6,3250.6,0.00454739]
[1641980454807,0.44213684,3251.6,3251.1,1.48105987]
[1641980455007,0.44213684,3251.6,3251.1,1.78105987]
[1641980455208,0.44213684,3251.6,3251.2,0.00113685]
[1641980456007,0.76913,3251.5,3251.2,0.00113685]
[1641980456211,0.441,3251.4,3251.2,0.00113685]
[1641980459255,0.441,3251.4,3251.2,2.63604342]
[1641980459460,0.441,3251.4,3251.2,0.00113685]
[1641980462204,0.441,3251.4,3250.6,0.00454739]
[1641980462509,0.441,3251.4,3250.5,0.77420581]
[1641980462913,0.441,3251.4,3251.1,1.12025285]
[1641980463208,0.441,3251.4,3251.2,0.00113685]
[1641980463810,0.441,3251.4,3251.2,2.61926127]
[1641980464012,0.441,3251.4,3251.2,0.00113685]
[1641980471823,0.02841905,3251.3,3250.3,2.83026736]
[1641980472022,0.441,3251.2,3250.3,0.00625266]
[1641980472224,0.441,3251.2,3250.4,0.00568424]
[1641980472429,0.02420619,3251.1,3250.3,0.00625266]
[1641980472639,0.441,3251.0,3250.5,1.5217068]
[1641980472952,0.441,3251.0,3250.6,0.00454739]
[1641980474156,0.76926,3250.9,3250.6,0.00454739]
[1641980474357,0.441,3250.8,3250.6,0.00454739]
[1641980474557,9.56319,3251.3,3250.6,0.00454739]
[1641980474558,0.441,3250.7,3250.6,0.00454739]
[1641980475662,0.441,3250.7,3250.6,2.72074427]
[1641980475860,0.441,3251.4,3250.9,1.30209521]
[1641980476066,0.441,3251.4,3250.9,1.60209521]
[1641980476258,0.441,3251.4,3251.0,0.0022737]
[1641980476704,0.441,3251.4,3251.1,2.29470895]
[1641980477098,0.441,3251.4,3251.2,0.60113685]
[1641980477921,0.441,3251.4,3251.2,3.21539999]
[1641980478202,0.441,3251.4,3251.2,0.60113685]
[1641980478598,0.441,3251.4,3251.2,2.8339941]
[1641980478800,0.441,3251.4,3251.2,0.30113685]
[1641980480753,0.441,3251.4,3251.2,0.00113685]
[1641980481757,0.441,3251.4,3251.2,2.56310526]
[1641980482358,0.441,3251.4,3251.2,0.00113685]
[1641980482554,0.441,3251.4,3251.2,2.54801461]
[1641980482756,0.441,3251.4,3251.2,0.00113685]
[1641980483155,0.441,3251.4,3251.2,2.54905713]
[1641980483357,0.441,3251.4,3251.2,0.00113685]
[1641980484808,5.9486,3251.7,3251.2,0.30113685]
[1641980485010,5.9486,3251.7,3251.2,0.00113685]
[1641980485513,6.71768,3251.7,3251.2,0.00113685]
[1641980486111,0.01361516,3251.6,3250.8,0.00341054]
[1641980486312,5.9486,3251.7,3250.6,0.00454739]
[1641980486512,5.9486,3251.7,3250.5,0.00511581]
[1641980486914,5.9486,3251.7,3250.5,1.11822554]
[1641980487113,5.9486,3251.7,3250.5,1.71822554]
[1641980487314,6.717733,3251.7,3250.6,0.00454739]
[1641980487613,0.441,3251.6,3250.7,0.76904]
[1641980487813,0.441,3251.6,3250.8,0.3]
[1641980488060,0.441,3251.6,3250.8,0.30341054]
[1641980488256,0.441,3251.6,3250.9,0.00284212]
[1641980489462,0.441,3251.6,3250.4,1.53803]
[1641980489463,1.53853,3251.3,3250.8,0.00341054]
[1641980489661,0.04289734,3251.1,3250.8,0.00341054]
[1641980489861,0.441,3251.0,3250.4,0.00568424]
[1641980490261,0.441,3251.0,3249.9,0.00852636]
[1641980490463,0.441,3251.0,3250.0,1.40212066]
[1641980491718,0.441,3251.0,3249.9,0.76924]
[1641980491901,1.21025,3251.0,3250.0,0.3]
[1641980492101,1.21025,3251.0,3250.0,0.30795793]
[1641980492401,0.441,3251.0,3250.0,0.30795793]
[1641980492601,0.441,3251.0,3250.2,1.33611941]
[1641980492802,0.441,3251.0,3250.2,1.63611941]
[1641980493001,0.441,3251.0,3250.3,0.00625266]
[1641980493207,0.441,3251.0,3250.4,0.76914]
[1641980493403,0.441,3251.0,3250.3,0.00625266]
[1641980493703,0.441,3251.0,3250.5,0.3]
[1641980494106,0.441,3251.0,3250.6,0.00454739]
[1641980494507,0.441,3251.0,3250.4,0.30568424]
[1641980494907,0.441,3251.0,3250.5,0.00511581]
[1641980495759,0.441,3251.0,3250.3,0.00625266]
[1641980496156,0.441,3251.0,3250.2,0.00682108]
[1641980498162,0.441,3251.0,3250.9,1.11523026]
[1641980498364,6.3896,3251.7,3250.9,1.11523026]
[1641980498558,6.3896,3251.7,3250.9,4.1273446]
[1641980498757,6.3896,3251.7,3251.0,0.0022737]
[1641980499405,6.3896,3251.7,3251.1,0.76893]
[1641980499603,6.3896,3251.7,3251.2,2.84539692]
[1641980499803,6.3896,3251.7,3251.2,0.30113685]
[1641980500003,6.3896,3251.7,3251.2,0.60113685]
[1641980500206,0.441,3251.7,3251.2,0.60113685]
[1641980500406,0.441,3251.7,3251.2,0.30113685]
[1641980500611,0.441,3251.7,3251.2,2.8925526]
[1641980500809,7.0256,3251.8,3251.6,1.52738883]
[1641980501015,3.64137181,3252.3,3251.6,2.59627883]
[1641980501016,3.6292,3252.3,3251.6,2.59627883]
[1641980501264,0.00170527,3251.7,3251.6,2.59627883]
[1641980501512,0.00568423,3252.4,3251.6,2.59627883]
[1641980501913,0.00511581,3252.3,3251.6,2.59627883]
[1641980502316,0.00454738,3252.2,3251.6,2.89627883]
[1641980502513,0.00454738,3252.2,3251.8,0.7688]
[1641980502713,0.00397896,3252.1,3251.9,0.3]
[1641980503260,0.00341054,3252.0,3251.6,1.82738883]
[1641980503664,0.46659518,3251.9,3251.2,0.00113685]
[1641980504060,0.00227369,3251.8,3251.0,2.81786574]
[1641980504360,0.00227369,3251.8,3251.1,0.00170527]
[1641980504761,0.00227369,3251.8,3251.0,0.0022737]
[1641980505064,0.00227369,3251.8,3251.2,1.53767]
[1641980505261,0.00227369,3251.8,3251.3,1.24125135]
[1641980505475,0.00227369,3251.8,3251.3,1.84125135]
[1641980506902,0.00227369,3251.8,3251.3,1.24125135]
[1641980507303,0.00227369,3251.8,3251.5,0.76888]
[1641980507808,0.00227369,3251.8,3251.2,1.53767]
[1641980508004,0.00227369,3251.8,3251.3,0.6]
[1641980511468,0.00227369,3251.8,3251.5,1.12999016]
[1641980511660,0.00227369,3251.8,3251.5,2.19887016]
[1641980512663,0.00227369,3251.8,3251.5,1.42999016]
[1641980512865,0.00227369,3251.8,3251.5,1.12999016]
[1641980513264,0.00227369,3251.8,3251.3,0.3]
[1641980513265,0.02439576,3251.7,3251.3,0.3]
[1641980513464,0.00227369,3251.8,3251.1,0.3]
[1641980513663,0.00113684,3251.6,3251.1,0.3]
[1641980513863,0.00113684,3251.6,3251.2,0.00113685]
[1641980514067,0.00341054,3252.0,3251.2,0.00113685]
[1641980514303,0.00341054,3252.0,3251.2,0.30113685]
[1641980514304,0.44441054,3252.0,3251.2,0.30113685]
[1641980514502,0.00284211,3251.9,3251.2,1.32830646]
[1641980514710,0.00284211,3251.9,3251.2,1.62830646]
[1641980514900,0.441,3252.0,3251.2,1.32830646]
[1641980514901,0.00227369,3251.8,3251.2,1.32830646]
[1641980515105,0.00227369,3251.8,3251.2,1.62830646]
[1641980515305,0.00284211,3251.9,3251.2,1.62830646]
[1641980515708,0.00227369,3251.8,3251.2,1.62830646]
[1641980515909,0.00227369,3251.8,3251.2,2.39724646]
[1641980516110,0.00284211,3251.9,3251.2,2.39724646]
[1641980516311,0.00284211,3251.9,3251.3,0.3]
[1641980516511,0.00227369,3251.8,3251.3,0.2964791]
[1641980516913,0.00284211,3251.9,3251.2,1.62830646]
[1641980517311,0.00227369,3251.8,3251.2,1.62830646]
[1641980517510,0.00227369,3251.8,3251.2,2.39714646]
[1641980517713,0.00454738,3252.2,3251.2,2.39714646]
[1641980518157,0.00397896,3252.1,3251.2,2.69714646]
[1641980518558,0.00341054,3252.0,3251.5,0.76888]
[1641980518958,0.00284211,3251.9,3251.5,1.36888]
[1641980519362,0.00227369,3251.8,3251.5,1.36888]
[1641980519757,0.00454738,3252.2,3251.5,0.6]
[1641980520158,0.00397896,3252.1,3251.5,0.3]
[1641980520600,0.00341054,3252.0,3251.5,0.3]
[1641980520962,0.00284211,3251.9,3251.5,0.3]
[1641980521363,0.00227369,3251.8,3251.5,0.3]
[1641980521808,0.00454738,3252.2,3251.5,0.3]
[1641980522211,0.00397896,3252.1,3251.5,0.3]
[1641980522610,0.00341054,3252.0,3251.6,0.76886]
[1641980522810,0.00341054,3252.0,3251.5,0.3]
[1641980523014,0.00284211,3251.9,3251.5,0.3]
[1641980523410,0.00227369,3251.8,3251.5,0.3]
[1641980523842,0.00454738,3252.2,3251.5,0.3]
[1641980524214,0.00397896,3252.1,3251.5,0.3]
[1641980524614,0.00341054,3252.0,3251.5,0.3]
[1641980525011,0.04591481,3251.8,3251.5,0.3]
[1641980525455,0.04556605,3252.1,3251.5,0.3]
[1641980525861,0.00341054,3252.0,3251.5,0.3]
[1641980526262,0.00284211,3251.9,3251.5,0.3]
[1641980526662,0.0391835,3251.7,3251.6,0.76885]
[1641980526861,0.00227369,3251.8,3251.6,0.76885]
[1641980527063,0.00454738,3252.2,3251.7,0.3]
[1641980527368,0.00397896,3252.1,3251.7,0.3]
[1641980527763,0.00341054,3252.0,3251.7,0.3]
[1641980528162,0.00284211,3251.9,3251.7,0.3]
[1641980528563,0.00227369,3251.8,3251.7,0.3]
[1641980529808,0.00227369,3251.8,3251.7,10.0740147]
[1641980530012,0.00227369,3251.8,3251.7,10.10890934]
[1641980530210,0.00227369,3251.8,3251.7,11.0740147]
[1641980530409,0.00227369,3251.8,3251.7,4.1240147]
[1641980531917,0.00227369,3251.8,3251.7,4.10171026]
[1641980532716,16.3226,3253.2,3252.5,1.1139296]
[1641980532968,12.5581,3253.2,3252.6,1.06859]
[1641980533168,0.00738951,3253.1,3252.6,1.36859]
[1641980533468,0.00682108,3253.0,3252.6,1.06859]